Cogmind - Beta 13 @@@ ROGUE MODE // 2024.06.14 @ 20:34:00 Player: celerysam Result: Destroyed by S-43 Plague with Heavy Machine Gun Performance ------------- Evolutions (7) 3500 Regions Visited (21) 4200 Robots Destroyed (69) 345 Value Destroyed (2191) 2191 Prototype IDs (23) 460 Alien Tech Used (0) 0 Bonus (975) 975 TOTAL SCORE: 11671 Bonus ------- Follower Combat Kills 175 Entered DSFs 500 Met Data Miner 300 Cogmind --------- Core Integrity 0/1300 Matter 155/300 Energy 33/100 System Corruption 0% Temperature Cool (0) Movement Walking (120) Location -3/Research Parts ------- > --- POWER (3) -------- (None) > --- PROPULSION (7) --- Myomer Leg > --- UTILITY (7) ------ Melee Analysis Suite Hacking Suite > --- WEAPON (4) ------- (None) > --- INVENTORY (5) ---- (None) Peak State ------------ > --- POWER ------------ Antimatter Reactor Micro Antimatter Reactor > --- PROPULSION ------- Improved VTOL Module Improved Cesium-ion Thruster Field Propulsion Array Q-thruster Impulse Thruster Array > --- UTILITY ---------- Improved Thermal Generator Advanced Cryofiber Web Weight Redist. System Improved Sensor Array Improved Transmission Jammer Hacking Suite Hacking Suite > --- WEAPON ----------- Wave Gun Quantum Rifle Heavy Pick Heavy Pick > --- INVENTORY -------- Antimatter Reactor Armored Medium Treads Biometal Medium Treads Point Defense System Micro-nuke Launcher [Rating: 118] Favorites ----------- Power Improved Ion Engine Engine Improved Ion Engine Power Core Micro Nuclear Core Reactor Antimatter Reactor Propulsion Light Treads Treads Light Treads Leg Aluminum Leg Wheel Armored Huge Wheel Flight Unit Improved Cesium-ion Thruster Utility Salvage Targeting Computer Device Weight Redist. System Storage Small Storage Unit Processor Salvage Targeting Computer Hackware Hacking Suite Weapon Chainsword Energy Gun Precision Shock Rifle Energy Cannon Cooled Particle Cannon Ballistic Gun Minigun Ballistic Cannon Flak Cannon Launcher Missile Launcher Special Weapon Plasma Cutter Impact Weapon Powered Hammer Slashing Weapon Chainsword Piercing Weapon Heavy Pick Special Melee Weapon Improved Datajack Build | -11 -10 -9 -8 -8 -7 -7 -7 -7 -7 -6 -6 -6 -5 -5 -5 -4 -4 -4 -4 -4 -3 ------- Run | Yrd Mat Mat Mat Sto Fac Was Fac Low Dat Pro Fac DSF Fac Upp Upp Fac Was Fac Upp Upp Res Slots Evolved 14 | . . 2 2 . 2 . . . . . 2 . 2 . . 2 . . . . 2 Power 2 | . . . 1 . . . . . . . . . . . . 1 . . . . . Propulsion 5 | . . 1 1 . . . . . . . 1 . 1 . . . . . . . 1 Utility 5 | . . 1 . . 1 . . . . . 1 . 1 . . . . . . . 1 Weapon 2 | . . . . . 1 . . . . . . . . . . 1 . . . . . Parts Attached 172 | 7 8 10 6 18 21 1 45 . . 1 1 4 3 1 1 4 1 5 6 4 25 Power 31 | 1 1 2 3 1 5 . 8 . . . . . . . . 2 1 2 1 . 4 Engine 11 | 1 1 2 3 . 2 . 1 . . . . . . . . . . 1 . . . Core 12 | . . . . 1 3 . 7 . . . . . . . . 1 . . . . . Reactor 8 | . . . . . . . . . . . . . . . . 1 1 1 1 . 4 Propulsion 48 | 2 3 3 2 6 4 1 17 . . . . 2 . . . . . 1 . . 7 Treads 16 | . . 3 1 6 1 . 1 . . . . 1 . . . . . . . . 3 Leg 4 | . . . 1 . . . 2 . . . . . . . . . . . . . 1 Wheel 8 | 2 3 . . . 1 1 1 . . . . . . . . . . . . . . Hover . | . . . . . . . . . . . . . . . . . . . . . . Flight 20 | . . . . . 2 . 13 . . . . 1 . . . . . 1 . . 3 Utility 43 | 1 1 2 . 2 4 . 9 . . 1 1 1 2 . 1 1 . 1 4 3 9 Device 32 | . 1 1 . . 4 . 8 . . 1 . 1 2 . 1 1 . . 4 1 7 Storage 5 | 1 . . . 1 . . 1 . . . . . . . . . . . . 2 . Processor 4 | . . 1 . 1 . . . . . . . . . . . . . . . . 2 Hackware 2 | . . . . . . . . . . . 1 . . . . . . 1 . . . Protection . | . . . . . . . . . . . . . . . . . . . . . . Artifact . | . . . . . . . . . . . . . . . . . . . . . . Weapon 50 | 3 3 3 1 9 8 . 11 . . . . 1 1 1 . 1 . 1 1 1 5 Energy Gun 17 | 1 1 1 . 4 . . 6 . . . . . . 1 . . . . . 1 2 Energy Cannon 4 | . . 1 . . . . 1 . . . . 1 . . . . . 1 . . . Ballistic Gun 10 | 2 1 . 1 1 3 . 1 . . . . . . . . . . . . . 1 Ballistic Cannon 3 | . 1 . . . 2 . . . . . . . . . . . . . . . . Launcher 3 | . . . . 1 1 . . . . . . . . . . . . . . . 1 Special Weapon 3 | . . . . 2 1 . . . . . . . . . . . . . . . . Impact Weapon 1 | . . . . . . . . . . . . . 1 . . . . . . . . Slashing Weapon 6 | . . 1 . 1 1 . 2 . . . . . . . . . . . . . 1 Piercing Weapon 2 | . . . . . . . . . . . . . . . . 1 . . 1 . . Special Melee Weapon 1 | . . . . . . . 1 . . . . . . . . . . . . . . Unidentified Prototypes 12 | . 1 1 . 1 3 . 5 . . . . 1 . . . . . . . . . Corrupted Parts 1 | . . . . . . . 1 . . . . . . . . . . . . . . System Corruption 1 | . . . . . . . 1 . . . . . . . . . . . . . . Parts Lost 54 | . . 2 . 4 12 . 6 . . 1 . 3 . 1 . . 1 . . . 24 Power 8 | . . 1 . . 2 . 2 . . . . . . . . . . . . . 3 Propulsion 17 | . . 1 . 2 4 . 2 . . . . . . . . . 1 . . . 7 Utility 13 | . . . . 1 1 . . . . . . 2 . 1 . . . . . . 8 Weapon 16 | . . . . 1 5 . 2 . . 1 . 1 . . . . . . . . 6 Highest Loss Streak 24 | . . 1 . 3 8 . 2 . . 1 . 3 . 1 . . 1 . . . 24 To Critical Strikes 1 | . . . . . . . . . . . . . . . . . . . . . 1 Average Slot Usage (%) 87 | . 98 96 100 97 90 65 80 100 100 94 86 83 75 75 70 62 55 55 70 77 63 Engine 6 | . 14 10 18 10 6 7 2 7 7 7 6 6 5 5 5 4 . . . . . Core 4 | . . . . 7 6 . 7 7 7 7 6 6 5 5 5 4 . . . . . Treads 12 | . . 22 29 35 24 . 1 . . . . 1 . . . . . . . . 1 Wheel 4 | . 28 8 . . . 5 6 . . . . . . . . . . . . . . Flight 11 | . . . . . 3 15 15 30 30 30 26 27 29 29 29 26 25 23 26 26 16 Device 10 | . 12 19 9 3 6 12 5 15 15 22 20 16 16 17 17 15 14 10 18 17 16 Storage 5 | . 14 11 9 9 5 . 6 . . . . . . . . . . . . 3 . Processor 9 | . . 2 9 12 15 15 15 15 15 7 6 6 5 4 . . . . . . 1 Hackware 1 | . . . . . . . . . . . 6 6 5 5 5 5 5 8 10 10 6 Energy Gun 6 | . . 5 5 4 9 . 9 15 15 9 6 3 . 3 5 3 . . . 4 4 Ballistic Gun 3 | . 17 2 3 6 3 7 . . . . . . . . . . . . . . . Ballistic Cannon 1 | . 10 . . . 4 . . . . . . . . . . . . . . . . Slashing Weapon 3 | . . 9 9 2 . . 3 7 7 7 6 6 1 . . . . . . . . Naked Turns . | . . . . . . . . . . . . . . . . . . . . . . Heaviest Build 76 | 14 17 20 25 63 76 11 28 28 28 29 25 29 29 29 29 33 33 44 44 42 54 Greatest Support 82 | 26 26 60 80 80 82 11 40 29 29 29 29 35 35 35 35 35 35 44 44 44 62 Greatest Overweight (x) 3 | 1 . 1 . 1 2 . 3 . . . . . . . . . . . . . 1 Average Overweight (x) . | . . . . . . . . . . . . . . . . . . . . . . Largest Inventory Capacity 20 | 8 8 8 8 20 20 5 8 5 5 5 5 5 5 5 5 5 5 5 5 5 5 Average Capacity 9 | 7 8 8 8 17 17 5 7 5 5 5 5 5 5 5 5 5 5 5 5 5 5 Most Carried 20 | 7 8 8 8 20 20 5 8 5 5 5 4 5 5 5 5 5 5 5 5 5 5 Average Carried 9 | 3 7 7 7 16 16 3 7 5 5 4 4 4 4 5 5 4 5 4 4 4 3 Final Capacity 20 | 8 8 8 8 20 5 5 5 5 5 5 5 5 5 5 5 5 5 5 5 5 5 Final Carried 20 | 6 8 8 8 20 4 3 5 5 5 5 4 5 5 5 5 5 5 5 5 5 . Class Distribution -------------------- 47% | Mutant 23% | Sprinter 12% | Gunner 5% | Hacker-Sprinter 4% | Scavenger-Mutant Dominant Class ---------------- Mutant | -10/Materials Mutant | -9/Materials Mutant | -8/Materials Mutant | -8/Storage Gunner | -7/Factory Mutant | -7/Waste Mutant | -7/Factory Sprinter | -7/Lower Caves Sprinter | -7/Data Miner Sprinter | -6/Proximity Caves Sprinter | -6/Factory Sprinter | -6/DSF Sprinter | -5/Factory Sprinter | -5/Upper Caves Sprinter | -5/Upper Caves Sprinter | -4/Factory Sprinter | -4/Waste Hacker-Sprinter | -4/Factory Hacker-Sprinter | -4/Upper Caves Hacker-Sprinter | -4/Upper Caves Hacker-Sprinter | -3/Research Resources | -11 -10 -9 -8 -8 -7 -7 -7 -7 -7 -6 -6 -6 -5 -5 -5 -4 -4 -4 -4 -4 -3 ----------- Run | Yrd Mat Mat Mat Sto Fac Was Fac Low Dat Pro Fac DSF Fac Upp Upp Fac Was Fac Upp Upp Res Matter Collected 2332 | 69 94 246 59 297 454 . 507 96 . 161 . 2 . . 38 . . 26 145 95 43 Remotely . | . . . . . . . . . . . . . . . . . . . . . . Salvage Created 2288 | . 90 185 59 426 470 . 700 . . . . . . 17 . . . 26 99 73 143 Parts 141 | . 6 13 1 38 23 . 36 . . . . . . . . . . 3 3 1 17 Haulers Intercepted 1 | . . . . 1 . . . . . . . . . . . . . . . . . Recyclers Shooed 3 | . . . . . . . . . . . . . . . . . . . . . 3 Parts Field Recycled . | . . . . . . . . . . . . . . . . . . . . . . Retrieved Matter . | . . . . . . . . . . . . . . . . . . . . . . Parts Self-Destructed 11 | . . . . . . . . . . 5 . . . . 2 . . . 3 1 . Prevented . | . . . . . . . . . . . . . . . . . . . . . . Kills | -11 -10 -9 -8 -8 -7 -7 -7 -7 -7 -6 -6 -6 -5 -5 -5 -4 -4 -4 -4 -4 -3 ------- Run | Yrd Mat Mat Mat Sto Fac Was Fac Low Dat Pro Fac DSF Fac Upp Upp Fac Was Fac Upp Upp Res Combat Hostiles Destroyed 56 | . 3 6 1 11 9 . 19 . . . . . . 1 . . . . 2 . 4 Melee 13 | . . 4 1 3 . . 2 . . . . . . . . . . . 2 . 1 Guns 32 | . 1 2 . 6 7 . 16 . . . . . . . . . . . . . . Cannons 4 | . 2 . . . 2 . . . . . . . . . . . . . . . . AOE 5 | . . . . 2 . . . . . . . . . . . . . . . . 3 Classes Destroyed 15 | . 1 3 . 5 4 . . . . . . . . . . . . 1 . . 1 Worker 4 | . . . . 1 . . 1 . . . . . . . . . . . . . 2 Builder 3 | . . . . 1 . . . . . . . . . . . . . . . . 2 Hauler 1 | . . . . 1 . . . . . . . . . . . . . . . . . Recycler 1 | . . . . . 1 . . . . . . . . . . . . . . . . Mechanic 1 | . . . . 1 . . . . . . . . . . . . . . . . . Operator 2 | . . . . . . . . . . . . . . . . . . 2 . . . Watcher 1 | . . . . . 1 . . . . . . . . . . . . . . . . Swarmer 25 | . . 3 . 4 3 . 12 . . . . . . 1 . . . . 1 . 1 Cutter 2 | . . . . . . . . . . . . . . . . . . . . . 2 Grunt 18 | . 3 1 1 2 4 . 6 . . . . . . . . . . . 1 . . Brawler 1 | . . . . . 1 . . . . . . . . . . . . . . . . Duelist 1 | . . 1 . . . . . . . . . . . . . . . . . . . Sentry 4 | . . 1 . 3 . . . . . . . . . . . . . . . . . Hunter 3 | . . . . 2 . . . . . . . . . . . . . . . . 1 Programmer 2 | . . . . . 1 . 1 . . . . . . . . . . . . . . Best Kill Streak 8 | . 2 3 1 7 4 . 4 . . . . . . 1 . . . 2 2 . 8 Combat Bots Only 4 | . 2 3 1 4 3 . 4 . . . . . . 1 . . . . 2 . 4 Max Kills in Single Turn 4 | . 1 1 1 3 2 . 1 . . . . . . 1 . . . 1 1 . 4 Gunslinging . | . . . . . . . . . . . . . . . . . . . . . . Exploded 2 | . . . . 1 . . . . . . . . . . . . . . . . 2 Melee 1 | . . 1 1 1 . . 1 . . . . . . . . . . . 1 . 1 Uniques/NPCs Destroyed . | . . . . . . . . . . . . . . . . . . . . . . Combat | -11 -10 -9 -8 -8 -7 -7 -7 -7 -7 -6 -6 -6 -5 -5 -5 -4 -4 -4 -4 -4 -3 -------- Run | Yrd Mat Mat Mat Sto Fac Was Fac Low Dat Pro Fac DSF Fac Upp Upp Fac Was Fac Upp Upp Res Hostile Shots Fired 839 | . 9 69 5 110 151 . 183 . . 4 . 11 2 37 8 . 1 . 22 . 227 Missed 289 | . 2 18 1 25 54 . 79 . . 1 . . 2 21 7 . . . 12 . 67 Damage Taken 9404 | . 87 671 62 1088 1704 . 1564 . . 57 . 281 . 186 69 . 38 . 171 . 3426 Core 2500 | . 22 134 33 99 274 . 367 . . 25 . 65 . 50 42 . 38 . 46 . 1305 Absorbed by Shields 129 | . . . . . . . . . . . . 55 . 54 20 . . . . . . Regen/Repaired (Parts) 200 | . . 48 . . . . 152 . . . . . . . . . . . . . . Core Remaining (%) 76 | 100 91 66 . 76 . . . . . 4 . 92 . . 90 . . . . 92 . Volleys Fired 141 | . 7 12 . 34 36 . 40 . . . . . . . . 3 . . . 1 8 Largest 3 | . 2 2 . 2 3 . 3 . . . . . . . . 1 . . . 1 2 Hottest 175 | . 55 68 . 105 131 . 153 . . . . . . . . 75 . . . 81 175 Shots Fired 244 | . 14 14 . 45 86 . 71 . . . . . . . . 3 . . . 1 10 Gun 201 | . 7 11 . 37 66 . 69 . . . . . . . . 3 . . . 1 7 Cannon 32 | . 7 3 . . 20 . 2 . . . . . . . . . . . . . . Launcher 9 | . . . . 6 . . . . . . . . . . . . . . . . 3 Special 2 | . . . . 2 . . . . . . . . . . . . . . . . . Kinetic 105 | . 14 9 . 19 59 . 2 . . . . . . . . . . . . . 2 Thermal 92 | . . 3 . 5 27 . 48 . . . . . . . . 3 . . . 1 5 Explosive 9 | . . . . 6 . . . . . . . . . . . . . . . . 3 Electromagnetic 38 | . . 2 . 15 . . 21 . . . . . . . . . . . . . . Robot Hit Streak 15 | . 7 12 . 12 10 . 15 . . . . . . . . 3 . . . 1 2 Robot Miss Streak 3 | . 1 3 . 3 2 . 3 . . . . . . . . 1 . . . . 3 Penetration Max 1 | . . . . . 1 . . . . . . . . . . . . . . . . Secondary Targets 1 | . . . . . 1 . . . . . . . . . . . . . . . . Max Gunslinging Chain 1 | . . . . . 1 . . . . . . . . . . . . . . . . Shots Hit Robots 208 | . 10 22 1 39 61 . 59 . . . . . . 2 . 2 . 2 4 1 5 Core Hits 135 | . 5 10 1 25 22 . 48 . . . . . . . . 1 . 2 2 1 18 Critical Kills . | . . . . . . . . . . . . . . . . . . . . . . Critical Parts Destroyed 1 | . . . . . . . . . . . . . . 1 . . . . . . . Critical Strikes 9 | . . 2 . 2 . . 4 . . . . . . 1 . . . . . . . Burn 2 | . . . . . . . 2 . . . . . . . . . . . . . . Smash 1 | . . . . . . . . . . . . . . 1 . . . . . . . Sever 6 | . . 2 . 2 . . 2 . . . . . . . . . . . . . . Melee Attacks 55 | . . 13 2 15 . . 9 . . . . . . 3 . . . 2 7 . 4 Impact 3 | . . . . . . . . . . . . . . 3 . . . . . . . Slashing 40 | . . 13 2 15 . . 9 . . . . . . . . . . . . . 1 Piercing 12 | . . . . . . . . . . . . . . . . . . 2 7 . 3 Sneak Attacks 1 | . . . . . . . 1 . . . . . . . . . . . . . . Combat Hostiles . | . . . . . . . . . . . . . . . . . . . . . . Follow-up Attacks 1 | . . . . . . . . . . . . . . . . . . . 1 . . Damage Inflicted 6495 | . 151 536 36 1372 1448 . 1280 . . . . . . 85 . 43 . 69 146 25 1304 Guns 2918 | . 62 170 . 408 1077 . 1053 . . . . . . . . 43 . . . 25 80 Cannons 430 | . 89 . . . 341 . . . . . . . . . . . . . . . . Explosions 1713 | . . . . 587 . . . . . . . . . . . . . . . . 1126 Melee 1382 | . . 366 36 359 . . 223 . . . . . . 85 . . . 69 146 . 98 Ramming 41 | . . . . 7 30 . 4 . . . . . . . . . . . . . . Kinetic 1663 | . 151 139 . 249 1087 . 15 . . . . . . . . . . . . . 22 Thermal 1195 | . . . . 11 331 . 727 . . . . . . . . 43 . . . 25 58 Explosive 1713 | . . . . 587 . . . . . . . . . . . . . . . . 1126 Electromagnetic 501 | . . 31 . 159 . . 311 . . . . . . . . . . . . . . Impact 85 | . . . . . . . . . . . . . . 85 . . . . . . . Slashing 1008 | . . 366 36 359 . . 223 . . . . . . . . . . . . . 24 Piercing 289 | . . . . . . . . . . . . . . . . . . 69 146 . 74 Highest Corruption 11 | . . . . 2 9 11 11 11 11 11 . . . . . . 6 6 6 6 . Average Corruption 7 | . . . . 2 3 8 10 11 11 11 . . . . . . 6 6 6 6 . Corruption Purged 5 | . . . . . 4 1 . . . . . . . . . . . . . . . Corruption Blocked . | . . . . . . . . . . . . . . . . . . . . . . Effects 89 | . . . . 7 10 2 48 1 1 9 . . . . . . 2 1 7 1 . Message Errors 22 | . . . . 2 3 . 10 . 1 3 . . . . . . 1 . 2 . . Matter Fused 23 | . . . . 2 2 2 10 . . 5 . . . . . . . 1 1 . . Heat Flow Errors 9 | . . . . . 2 . 3 1 . 1 . . . . . . . . 2 . . Energy Discharges 5 | . . . . 1 . . 3 . . . . . . . . . 1 . . . . Parts Rejected 3 | . . . . . . . 3 . . . . . . . . . . . . . . Data Loss (minor) 12 | . . . . . 2 . 7 . . . . . . . . . . . 2 1 . Data Loss (major) 3 | . . . . 2 . . 1 . . . . . . . . . . . . . . Alerts 3 | . . . . . . . 3 . . . . . . . . . . . . . . Misdirections 5 | . . . . . . . 5 . . . . . . . . . . . . . . Weapon Failures 4 | . . . . . 1 . 3 . . . . . . . . . . . . . . Overload Shots . | . . . . . . . . . . . . . . . . . . . . . . Overflow Damage 172 | . . 1 . . 11 . . . . . . . . 60 . . . . . . 100 Projectiles 11 | . . . . . 11 . . . . . . . . . . . . . . . . Explosions 100 | . . . . . . . . . . . . . . . . . . . . . 100 Melee 61 | . . 1 . . . . . . . . . . . 60 . . . . . . . Knockbacks 8 | . 1 . . . 7 . . . . . . . . . . . . . . . . Impact . | . . . . . . . . . . . . . . . . . . . . . . Kinetic 7 | . 1 . . . 6 . . . . . . . . . . . . . . . . Secondary 1 | . . . . . 1 . . . . . . . . . . . . . . . . Self-Inflicted Damage 153 | . . . . 82 . . 2 . . . . . . . . . . . . . 69 Shots 4 | . . . . 3 . . . . . . . . . . . . . . . . 1 Rammed 4 | . . . . 1 2 . 1 . . . . . . . . . . . . . . Targets Rammed 4 | . . . . 1 2 . 1 . . . . . . . . . . . . . . Kicked . | . . . . . . . . . . . . . . . . . . . . . . Crushed . | . . . . . . . . . . . . . . . . . . . . . . Highest Temperature 666 | . 21 . . 245 666 . 371 250 . 198 . . 20 45 57 116 . 45 283 67 348 Average Temperature 113 | . 12 . . 81 236 . 94 196 . 110 . . 14 32 24 52 . 21 83 24 73 Received Heat Transfer 1690 | . 54 81 36 261 357 . 393 . . 12 . . . . 7 . . . 21 . 468 Effects 17 | . . . . . 16 . 1 . . . . . . . . . . . . . . Shutdowns 8 | . . . . . 8 . . . . . . . . . . . . . . . . Energy Bleed 6 | . . . . . 5 . 1 . . . . . . . . . . . . . . Matter Decay 2 | . . . . . 2 . . . . . . . . . . . . . . . . Damage (minor) 1 | . . . . . 1 . . . . . . . . . . . . . . . . Siege Activations . | . . . . . . . . . . . . . . . . . . . . . . Robots Corrupted . | . . . . . . . . . . . . . . . . . . . . . . Combat Hostiles . | . . . . . . . . . . . . . . . . . . . . . . Parts Fried 2 | . . . . 1 . . . . . . . . . 1 . . . . . . . Impact Corruptions 2 | . . . . . . . . . . . . . . 2 . . . . . . . Robots Melted 1 | . . . . . . . 1 . . . . . . . . . . . . . . Combat Hostiles 1 | . . . . . . . 1 . . . . . . . . . . . . . . Parts Melted 2 | . . . . . . . 2 . . . . . . . . . . . . . . Heat Transferred 1938 | . . . . 37 592 . 1124 . . . . . . . . 74 . . . 37 74 Parts Sabotaged . | . . . . . . . . . . . . . . . . . . . . . . Parts Stolen . | . . . . . . . . . . . . . . . . . . . . . . Parts Stripped . | . . . . . . . . . . . . . . . . . . . . . . Power Chain Reactions . | . . . . . . . . . . . . . . . . . . . . . . Alert | -11 -10 -9 -8 -8 -7 -7 -7 -7 -7 -6 -6 -6 -5 -5 -5 -4 -4 -4 -4 -4 -3 ------- Run | Yrd Mat Mat Mat Sto Fac Was Fac Low Dat Pro Fac DSF Fac Upp Upp Fac Was Fac Upp Upp Res Peak Influence 434 | . 184 242 52 285 214 45 434 . . . . . 45 . . 111 43 70 . . 351 Initial 111 | . . 77 17 21 105 . 31 . . . . . . . . 111 38 30 . . 57 Average 115 | . 79 154 23 129 93 21 166 . . . . . 22 . . 111 37 59 . . 156 Maximum Alert Level 2 | . . 1 . 1 1 . 2 . . . . . . . . . . . . . 1 Low Security (%) 77 | 100 100 61 100 64 98 100 59 . . . 100 100 100 . . 100 100 100 . . 55 Level 1 21 | . . 38 . 35 1 . 39 . . . . . . . . . . . . . 44 Level 2 . | . . . . . . . . . . . . . . . . . . . . . . Level 3 . | . . . . . . . . . . . . . . . . . . . . . . Level 4 . | . . . . . . . . . . . . . . . . . . . . . . Level 5 . | . . . . . . . . . . . . . . . . . . . . . . High Security . | . . . . . . . . . . . . . . . . . . . . . . Max Security . | . . . . . . . . . . . . . . . . . . . . . . Squads Dispatched 26 | . 1 . 1 4 6 . 9 . . . . . . . . . . . . . 5 Investigation 7 | . . . . . 1 . 5 . . . . . . . . . . . . . 1 Extermination 2 | . . . . . 1 . 1 . . . . . . . . . . . . . . Reinforcement 9 | . 1 . 1 1 1 . 3 . . . . . . . . . . . . . 2 Assault . | . . . . . . . . . . . . . . . . . . . . . . Garrison 8 | . . . . 3 3 . . . . . . . . . . . . . . . 2 Intercept . | . . . . . . . . . . . . . . . . . . . . . . Searches Triggered . | . . . . . . . . . . . . . . . . . . . . . . Data Miner Redirects 1 | . . . . . . . . . . . . . . . . . . . . . 1 Construction Impeded . | . . . . . . . . . . . . . . . . . . . . . . Haulers Reinforced . | . . . . . . . . . . . . . . . . . . . . . . Active Scanning Responses . | . . . . . . . . . . . . . . . . . . . . . . Cargo Convoy Interrupts . | . . . . . . . . . . . . . . . . . . . . . . Stealth | -11 -10 -9 -8 -8 -7 -7 -7 -7 -7 -6 -6 -6 -5 -5 -5 -4 -4 -4 -4 -4 -3 --------- Run | Yrd Mat Mat Mat Sto Fac Was Fac Low Dat Pro Fac DSF Fac Upp Upp Fac Was Fac Upp Upp Res Distress Signals 5 | . . . 1 . 2 . 1 . . . . . . . . . . . . . 1 Communications Jammed 11 | . . . . . . . . . . . . . . . . . . . . . 11 Distress Signals 11 | . . . . . . . . . . . . . . . . . . . . . 11 Times Spotted 187 | . 8 11 7 16 24 5 38 . . 11 . 2 3 11 12 2 6 2 4 . 25 Peak Tracking Total 14 | . 3 7 3 4 7 5 6 . . 7 . 2 2 5 7 2 6 1 4 . 14 Tactical Retreats 23 | . . . 1 . 3 . 7 . . 2 . . 1 3 2 . . . 1 . 3 Traps | -11 -10 -9 -8 -8 -7 -7 -7 -7 -7 -6 -6 -6 -5 -5 -5 -4 -4 -4 -4 -4 -3 ------- Run | Yrd Mat Mat Mat Sto Fac Was Fac Low Dat Pro Fac DSF Fac Upp Upp Fac Was Fac Upp Upp Res Traps Triggered 5 | . . . . 1 2 . . . . . . 1 . . . 1 . . . . . Indirectly . | . . . . . . . . . . . . . . . . . . . . . . Trap Hack Attempts . | . . . . . . . . . . . . . . . . . . . . . . Triggered . | . . . . . . . . . . . . . . . . . . . . . . Disarmed . | . . . . . . . . . . . . . . . . . . . . . . Reprogrammed 6 | . . . . . . . . . . . . . . . . . . 6 . . . Reused . | . . . . . . . . . . . . . . . . . . . . . . Traps Extracted . | . . . . . . . . . . . . . . . . . . . . . . Installed . | . . . . . . . . . . . . . . . . . . . . . . Triggered 3 | . . . . . . . . . . . . . . 1 1 . . . 1 . . Machines | -11 -10 -9 -8 -8 -7 -7 -7 -7 -7 -6 -6 -6 -5 -5 -5 -4 -4 -4 -4 -4 -3 ---------- Run | Yrd Mat Mat Mat Sto Fac Was Fac Low Dat Pro Fac DSF Fac Upp Upp Fac Was Fac Upp Upp Res Machines Disabled 4 | . . . . 2 1 . 1 . . . . . . . . . . . . . . Max in Single Turn 1 | . . . . 1 1 . 1 . . . . . . . . . . . . . . Machines Repaired . | . . . . . . . . . . . . . . . . . . . . . . Machines Dismantled 3 | . . . . 3 . . . . . . . . . . . . . . . . . Machines Sabotaged . | . . . . . . . . . . . . . . . . . . . . . . Overloaded Fab Kills . | . . . . . . . . . . . . . . . . . . . . . . Hacking | -11 -10 -9 -8 -8 -7 -7 -7 -7 -7 -6 -6 -6 -5 -5 -5 -4 -4 -4 -4 -4 -3 --------- Run | Yrd Mat Mat Mat Sto Fac Was Fac Low Dat Pro Fac DSF Fac Upp Upp Fac Was Fac Upp Upp Res Machines Accessed 28 | . 2 2 . 6 1 . 8 . 4 . 1 . 1 . . 1 . 1 . . 1 Terminals 18 | . 2 1 . 5 1 . 4 . . . 1 . 1 . . 1 . 1 . . 1 Fabricators 2 | . . . . . . . 2 . . . . . . . . . . . . . . Repair Stations 3 | . . 1 . . . . 2 . . . . . . . . . . . . . . Recycling Units 1 | . . . . 1 . . . . . . . . . . . . . . . . . Scanalyzers . | . . . . . . . . . . . . . . . . . . . . . . Garrison Access . | . . . . . . . . . . . . . . . . . . . . . . Total Hacks 82 | . 6 4 . 11 2 . 22 . 28 . 1 . 2 . . 1 . 2 . . 3 Successful 56 | . 4 3 . 4 . . 10 . 28 . 1 . 1 . . 1 . 2 . . 2 Failed 26 | . 2 1 . 7 2 . 12 . . . . . 1 . . . . . . . 1 Catastrophic 8 | . . . . 3 1 . 4 . . . . . . . . . . . . . . Database Lockouts . | . . . . . . . . . . . . . . . . . . . . . . Manual 7 | . . 1 . 3 . . 1 . . . . . . . . . . 1 . . 1 Terminals 39 | . 6 2 . 9 2 . 11 . . . 1 . 2 . . 1 . 2 . . 3 Fabricators 5 | . . . . . . . 5 . . . . . . . . . . . . . . Repair Stations 8 | . . 2 . . . . 6 . . . . . . . . . . . . . . Recycling Units 2 | . . . . 2 . . . . . . . . . . . . . . . . . Scanalyzers . | . . . . . . . . . . . . . . . . . . . . . . Garrison Access . | . . . . . . . . . . . . . . . . . . . . . . Terminal Hacks 45 | . 4 1 . 3 . . 2 . 28 . 1 . 1 . . 1 . 2 . . 2 Record 11 | . . . . . . . . . 11 . . . . . . . . . . . . Part Schematic 11 | . . . . . . . . . 10 . . . . . . . . . . . 1 Robot Schematic 4 | . . . . . . . . . 4 . . . . . . . . . . . . Robot Analysis 1 | . 1 . . . . . . . . . . . . . . . . . . . . Prototype ID Bank 4 | . 1 . . . . . . . 3 . . . . . . . . . . . . Open Door 1 | . . . . 1 . . . . . . . . . . . . . . . . . Open DSF 2 | . . . . . . . . . . . 1 . . . . 1 . . . . . Level Access Points 1 | . . . . . . . . . . . . . . . . . . . . . 1 Emergency Access Points 1 | . . . . . . . . . . . . . 1 . . . . . . . . Alert Level 2 | . . 1 . . . . . . . . . . . . . . . 1 . . . Unreport Threat 1 | . . . . . . . 1 . . . . . . . . . . . . . . Locate Traps 3 | . 1 . . 1 . . 1 . . . . . . . . . . . . . . Reprogram Traps 1 | . . . . . . . . . . . . . . . . . . 1 . . . Dispatch Records 1 | . 1 . . . . . . . . . . . . . . . . . . . . Registered Components 1 | . . . . 1 . . . . . . . . . . . . . . . . . Fabricator Hacks 3 | . . . . . . . 3 . . . . . . . . . . . . . . Network Status 1 | . . . . . . . 1 . . . . . . . . . . . . . . Load Schematic 1 | . . . . . . . 1 . . . . . . . . . . . . . . Build 1 | . . . . . . . 1 . . . . . . . . . . . . . . Repair Station Hacks 6 | . . 2 . . . . 4 . . . . . . . . . . . . . . Scan Component 3 | . . 1 . . . . 2 . . . . . . . . . . . . . . Repair 3 | . . 1 . . . . 2 . . . . . . . . . . . . . . Recycling Unit Hacks 1 | . . . . 1 . . . . . . . . . . . . . . . . . Report Inventory 1 | . . . . 1 . . . . . . . . . . . . . . . . . Scanalyzer . | . . . . . . . . . . . . . . . . . . . . . . Garrison Access Hacks . | . . . . . . . . . . . . . . . . . . . . . . Unauthorized Hacks 1 | . . . . . . . 1 . . . . . . . . . . . . . . Terminals . | . . . . . . . . . . . . . . . . . . . . . . Fabricators 1 | . . . . . . . 1 . . . . . . . . . . . . . . Download 1 | . . . . . . . 1 . . . . . . . . . . . . . . Repair Stations . | . . . . . . . . . . . . . . . . . . . . . . Recycling Units . | . . . . . . . . . . . . . . . . . . . . . . Scanalyzers . | . . . . . . . . . . . . . . . . . . . . . . Garrison Access . | . . . . . . . . . . . . . . . . . . . . . . Data Cores Recovered 2 | . . . . . . . . . . . . . . . . . . 2 . . . Used 1 | . . . . . . . . . . . . . . . . . . 1 . . . Hacking Detections 15 | . . 2 . 4 1 . 6 . . . . . . . . 1 . . . . 1 Full Trace Events 7 | . . . . 1 1 . 4 . . . . . . . . . . . . . 1 Feedback Events 1 | . . . . . . . . . . . . . . . . . . . . . 1 Hackware Fried 1 | . . . . . . . . . . . . . . . . . . . . . 1 Feedback Blocked . | . . . . . . . . . . . . . . . . . . . . . . Robot Schematics Acquired 5 | . . . . . . . 1 . 4 . . . . . . . . . . . . Robots Built 3 | . . . . . . . 3 . . . . . . . . . . . . . . Authchips . | . . . . . . . . . . . . . . . . . . . . . . Time 58 | . . . . . . . 58 . . . . . . . . . . . . . . Total Robot Build Rating 9 | . . . . . . . 9 . . . . . . . . . . . . . . Part Schematics Acquired 11 | . . . . . . . . . 10 . . . . . . . . . . . 1 Parts Built . | . . . . . . . . . . . . . . . . . . . . . . Authchips . | . . . . . . . . . . . . . . . . . . . . . . Time . | . . . . . . . . . . . . . . . . . . . . . . Total Part Build Rating . | . . . . . . . . . . . . . . . . . . . . . . Parts Repaired 3 | . . 1 . . . . 2 . . . . . . . . . . . . . . Time 130 | . . 32 . . . . 98 . . . . . . . . . . . . . . Parts Recycled . | . . . . . . . . . . . . . . . . . . . . . . Recycled Matter . | . . . . . . . . . . . . . . . . . . . . . . Retrieved Matter . | . . . . . . . . . . . . . . . . . . . . . . Retrieved Components . | . . . . . . . . . . . . . . . . . . . . . . Parts Scanalyzed . | . . . . . . . . . . . . . . . . . . . . . . Part Schematics Acquired . | . . . . . . . . . . . . . . . . . . . . . . Parts Damaged . | . . . . . . . . . . . . . . . . . . . . . . Bothacking | -11 -10 -9 -8 -8 -7 -7 -7 -7 -7 -6 -6 -6 -5 -5 -5 -4 -4 -4 -4 -4 -3 ------------ Run | Yrd Mat Mat Mat Sto Fac Was Fac Low Dat Pro Fac DSF Fac Upp Upp Fac Was Fac Upp Upp Res Used RIF Installer . | . . . . . . . . . . . . . . . . . . . . . . Robots Hacked . | . . . . . . . . . . . . . . . . . . . . . . Non-combat . | . . . . . . . . . . . . . . . . . . . . . . Combat . | . . . . . . . . . . . . . . . . . . . . . . Robot Hacks Applied . | . . . . . . . . . . . . . . . . . . . . . . Relay Couplers Released . | . . . . . . . . . . . . . . . . . . . . . . Fabnet Peak Effective % . | . . . . . . . . . . . . . . . . . . . . . . Robots Rewired . | . . . . . . . . . . . . . . . . . . . . . . Allies Hacked . | . . . . . . . . . . . . . . . . . . . . . . Hacks Repelled . | . . . . . . . . . . . . . . . . . . . . . . Allies | -11 -10 -9 -8 -8 -7 -7 -7 -7 -7 -6 -6 -6 -5 -5 -5 -4 -4 -4 -4 -4 -3 -------- Run | Yrd Mat Mat Mat Sto Fac Was Fac Low Dat Pro Fac DSF Fac Upp Upp Fac Was Fac Upp Upp Res Total Allies 14 | . . . . 10 . . 3 . . 1 . . . . . . . . . . . Largest Group 10 | . . . . 10 10 . 3 . . 1 . . . . . . . . . . . Highest-Rated Group 173 | . . . . 173 173 . 48 . . 96 . . . . . . . . . . . Highest-Rated Ally 96 | . . . . 29 29 . 16 . . 96 . . . . . . . . . . . Total Orders . | . . . . . . . . . . . . . . . . . . . . . . Ally Attacks 72 | . . . . . 38 . 18 . . 16 . . . . . . . . . . . Total Damage 1271 | . . . . . 413 . 219 . . 639 . . . . . . . . . . . Kills 10 | . . . . . 4 . 3 . . 3 . . . . . . . . . . . Allies Corrupted . | . . . . . . . . . . . . . . . . . . . . . . Allies Melted . | . . . . . . . . . . . . . . . . . . . . . . Intel | -11 -10 -9 -8 -8 -7 -7 -7 -7 -7 -6 -6 -6 -5 -5 -5 -4 -4 -4 -4 -4 -3 ------- Run | Yrd Mat Mat Mat Sto Fac Was Fac Low Dat Pro Fac DSF Fac Upp Upp Fac Was Fac Upp Upp Res Robot Analysis Total 1 | . 1 . . . . . . . . . . . . . . . . . . . . Derelict Logs Recovered 3 | . . . . . . . . . . 2 . . . 1 . . . . . . . Drone Launches 2 | . . . . . 2 . . . . . . . . . . . . . . . . Drone Recoveries 2 | . . . . . 2 . . . . . . . . . . . . . . . . Exploration | -11 -10 -9 -8 -8 -7 -7 -7 -7 -7 -6 -6 -6 -5 -5 -5 -4 -4 -4 -4 -4 -3 ------------- Run | Yrd Mat Mat Mat Sto Fac Was Fac Low Dat Pro Fac DSF Fac Upp Upp Fac Was Fac Upp Upp Res Turns Passed 5371 | 55 351 449 352 710 801 56 1159 15 25 444 3 42 82 109 50 86 59 63 223 50 187 Spaces Moved 7034 | 41 342 225 206 299 555 123 1478 57 94 1032 7 107 287 381 186 256 167 145 515 165 366 Core 37 | 8 . . . . . . . . . . . . . . . . . . . . 29 Treads 970 | . . 157 206 299 303 . . . . . . . . . . . . . . . 5 Legs 1 | . . . . . . . . . . . . . . . . . . . . . 1 Wheels 985 | 33 342 68 . . 5 . 537 . . . . . . . . . . . . . . Hover . | . . . . . . . . . . . . . . . . . . . . . . Flight 5041 | . . . . . 247 123 941 57 94 1032 7 107 287 381 186 256 167 145 515 165 331 Fastest Speed 24 | 50 90 90 160 162 39 44 26 26 26 26 26 24 24 24 24 24 24 25 25 25 25 Average Speed 56 | 87 90 139 160 163 114 44 53 26 26 26 26 28 26 25 25 25 24 25 25 25 31 Slowest Speed 305 | 100 90 160 162 245 305 44 272 26 26 26 26 46 27 26 26 26 27 27 25 25 157 Overloaded Moves . | . . . . . . . . . . . . . . . . . . . . . . Propulsion Burnouts . | . . . . . . . . . . . . . . . . . . . . . . Robots Hopped 12 | . . . . . 1 . 6 . . . . 1 1 . . 2 . 1 . . . Cave-ins Triggered . | . . . . . . . . . . . . . . . . . . . . . . Exploration Rate (%) 40 | 4 54 27 20 67 21 86 34 10 72 93 . 91 6 60 23 7 77 4 63 14 13 Regions Visited 21 Branch Regions 8 Pre-discovered Areas 1 | . . . . . . . . . 1 . . . . . . . . . . . . Known Exits Taken 2 | . . . . . . . . . . . 1 . . . . . . . . 1 . Unknown Exits Taken 14 | 1 1 1 1 1 . . 1 1 1 1 . . 1 1 1 . . 1 1 . . Scrap Searched 16 | . . . . . . . . 6 . 5 . . . 1 1 . . . 2 1 . Spaces Dug . | . . . . . . . . . . . . . . . . . . . . . . Terrain Destroyed 65 | . . . . 26 2 . 2 . . . . . . . . . . . . . 35 Melee . | . . . . . . . . . . . . . . . . . . . . . . Projectile 4 | . . . . . 2 . 2 . . . . . . . . . . . . . . AOE 61 | . . . . 26 . . . . . . . . . . . . . . . . 35 Terrain Rammed . | . . . . . . . . . . . . . . . . . . . . . . Walls Destroyed . | . . . . . . . . . . . . . . . . . . . . . . Machines Disabled . | . . . . . . . . . . . . . . . . . . . . . . Actions | -11 -10 -9 -8 -8 -7 -7 -7 -7 -7 -6 -6 -6 -5 -5 -5 -4 -4 -4 -4 -4 -3 --------- Run | Yrd Mat Mat Mat Sto Fac Was Fac Low Dat Pro Fac DSF Fac Upp Upp Fac Was Fac Upp Upp Res Total 8082 | 59 371 327 225 415 649 124 1760 56 93 1207 7 116 291 384 187 273 183 164 596 171 424 Wait 479 | . 6 57 . 6 10 . 138 . . 172 . . . . . . 16 9 65 . . Move 6991 | 40 341 224 205 298 553 122 1465 56 93 1031 6 104 284 380 185 252 166 142 514 164 366 Hop 12 | . . . . . 1 . 6 . . . . 1 1 . . 2 . 1 . . . Pick Up 104 | 12 4 6 6 19 11 . 24 . . 1 . 3 1 . . 4 . 2 1 1 9 Fast Attach 53 | . 2 4 2 1 3 . 18 . . 1 . 4 2 . 1 2 1 4 3 1 4 Attach 62 | 6 1 3 2 4 12 1 10 . . . 1 . . . . . . 1 3 1 17 Detach 13 | . . . . . . 1 3 . . . . . . . . 1 . . 2 . 6 Swap 57 | 1 5 3 2 13 6 . 17 . . . . . 1 1 . 2 . . . 2 4 Drop 95 | . 5 5 6 7 15 . 29 . . 2 . 4 2 . 1 7 . 3 2 1 6 Fire 141 | . 7 12 . 34 36 . 40 . . . . . . . . 3 . . . 1 8 Melee 54 | . . 13 2 15 . . 9 . . . . . . 3 . . . 2 6 . 4 Ram 1 | . . . . . . . 1 . . . . . . . . . . . . . . Kick . | . . . . . . . . . . . . . . . . . . . . . . Crush 3 | . . . . 1 2 . . . . . . . . . . . . . . . . Escape Stasis . | . . . . . . . . . . . . . . . . . . . . . . Rewire . | . . . . . . . . . . . . . . . . . . . . . . Trap . | . . . . . . . . . . . . . . . . . . . . . . Miscellaneous 17 | . . . . 17 . . . . . . . . . . . . . . . . . Route ------- -11/Scrapyard -10/Materials (discovered 2 exits: *Mat / [*Min]) -9/Materials -8/Materials -8/Storage -7/Factory -7/Waste -7/Factory -7/Lower Caves -7/Data Miner -6/Proximity Caves -6/Factory -6/DSF -5/Factory -5/Upper Caves -5/Upper Caves -4/Factory (discovered 2 exits: *Res / Arm) -4/Waste -4/Factory -4/Upper Caves -4/Upper Caves -3/Research (discovered 3 exits: Res x3) History --------- Turn | Location | Event 20 | -11/Scrapyard | Discovered new exit (range 15) 56 | -11/Scrapyard | Entered Materials 220 | -10/Materials | Discovered new exit (range 14) 306 | -10/Materials | Build established: Mutant 385 | -10/Materials | Discovered new exit (range 16) 407 | -10/Materials | Entered another Materials area 407 | -9/Materials | Evolved 2 slots: Propulsion x1, Utility x1 775 | -9/Materials | Repaired Cooling System 791 | -9/Materials | Discovered new exit (range 9) 856 | -9/Materials | Entered another Materials area 856 | -8/Materials | Evolved 2 slots: Power x1, Propulsion x1 1196 | -8/Materials | Discovered new exit (range 7) 1208 | -8/Materials | Entered Storage 1717 | -8/Storage | Garrison activated, responded to threat 1762 | -8/Storage | Lost 3 parts (2n1w) 1841 | -8/Storage | Assisted by bots powering up and referring to "LRC-V3" 1855 | -8/Storage | Discovered new exit (range 15) 1897 | -8/Storage | Door terminal overloaded 1918 | -8/Storage | Entered Factory 1918 | -7/Factory | Accompanied by 10 allies 1918 | -7/Factory | Evolved 2 slots: Utility x1, Weapon x1 2022 | -7/Factory | Garrison activated, responded to threat 2315 | -7/Factory | Build established: Gunner 2588 | -7/Factory | Lost 8 parts (1p2n1u4w) 2719 | -7/Factory | Sucked down chute 2719 | -7/Factory | Entered Waste 2725 | -7/Waste | Spotted C-40 Crusher 2734 | -7/Waste | EMP discharged 2734 | -7/Waste | System corruption reached 10% 2736 | -7/Waste | Spotted C-40 Crusher 2747 | -7/Waste | Spotted C-40 Crusher 2747 | -7/Waste | Spotted C-40 Crusher 2748 | -7/Waste | Spotted C-40 Crusher 2768 | -7/Waste | Discovered new exit (range 15) 2775 | -7/Waste | Entered Factory 2829 | -7/Factory | Build established: Mutant 3094 | -7/Factory | Core integrity fell below 50% 3556 | -7/Factory | Fabricated G-47 Trooper? 3592 | -7/Factory | Repaired Adv. Treads 3652 | -7/Factory | Repaired Imp. VTOL Module 3849 | -7/Factory | Core integrity fell below 20% 3932 | -7/Factory | Discovered new exit (range 7) 3934 | -7/Factory | Entered Lower Caves 3946 | -7/Lower Caves | A Derelict revealed a hidden shortcut to meet someone special 3949 | -7/Lower Caves | Build established: Sprinter 3949 | -7/Lower Caves | Entered Data Miner 3949 | -7/Data Miner | Discovered new exit (range 6) 3954 | -7/Data Miner | Met Data Miner 3959 | -7/Data Miner | Learned location of Section 7 (-2) 3959 | -7/Data Miner | Acquired the access code to Warlord's prototype stash 3965 | -7/Data Miner | Received God Mode back door access code from Data Miner 3974 | -7/Data Miner | Entered Proximity Caves 4008 | -6/Proximity Caves | Escorted by Enhanced Grunt 4016 | -6/Proximity Caves | Learned Factory terminal intel 4064 | -6/Proximity Caves | Spotted B-75 Beast 4169 | -6/Proximity Caves | Learned location of 1 exit from Lower Caves 4417 | -6/Proximity Caves | Discovered new exit (range 3) 4418 | -6/Proximity Caves | Entered Factory 4418 | -6/Factory | Evolved 2 slots: Propulsion x1, Utility x1 4419 | -6/Factory | Loaded intel: 26 terminal locations 4421 | -6/Factory | Identified exit to DSF 4421 | -6/Factory | Entered DSF 4441 | -6/DSF | Additional patrols routed to DSF 4454 | -6/DSF | Discovered new exit (range 16) 4463 | -6/DSF | Entered Factory 4463 | -5/Factory | Evolved 2 slots: Propulsion x1, Utility x1 4482 | -5/Factory | Discovered new exit (range 7) 4485 | -5/Factory | Lost 3 parts (2u1w) 4545 | -5/Factory | Entered Upper Caves 4551 | -5/Upper Caves | Learned location of 2 exits from Factory 4574 | -5/Upper Caves | Spotted B-75 Beast 4649 | -5/Upper Caves | Discovered new exit (range 13) 4654 | -5/Upper Caves | Entered another Upper Caves area 4671 | -5/Upper Caves | Attracted the attention of an 0b10 base 4699 | -5/Upper Caves | Discovered new exit (range 15) 4704 | -5/Upper Caves | Entered Factory 4704 | -4/Factory | Evolved 2 slots: Power x1, Weapon x1 4705 | -4/Factory | Identified exit to Armory 4705 | -4/Factory | Identified exit to Research 4790 | -4/Factory | Sucked down chute 4790 | -4/Factory | Entered Waste 4795 | -4/Waste | Spotted C-40 Crusher 4795 | -4/Waste | Spotted C-40 Crusher 4797 | -4/Waste | Spotted C-40 Crusher 4805 | -4/Waste | EMP discharged 4834 | -4/Waste | Crushed by Compactor (1 part destroyed, 2 dropped) 4836 | -4/Waste | Spotted C-40 Crusher 4838 | -4/Waste | Spotted C-40 Crusher 4842 | -4/Waste | Spotted C-40 Crusher 4847 | -4/Waste | Discovered new exit (range 10) 4849 | -4/Waste | Entered Factory 4911 | -4/Factory | Discovered new exit (range 5) 4912 | -4/Factory | Entered Upper Caves 5103 | -4/Upper Caves | Attracted the attention of an 0b10 checkpoint 5132 | -4/Upper Caves | Discovered new exit (range 15) 5135 | -4/Upper Caves | Entered another Upper Caves area 5184 | -4/Upper Caves | Discovered exit to Research (range 5) 5185 | -4/Upper Caves | Entered Research 5185 | -3/Research | Evolved 2 slots: Propulsion x1, Utility x1 5282 | -3/Research | Identified exit to Research 5298 | -3/Research | Hacking Suite fried by hacking feedback 5321 | -3/Research | Incoming investigation squad redirected 5348 | -3/Research | Core integrity fell below 50% 5356 | -3/Research | Core integrity fell below 20% 5372 | -3/Research | Destroyed by S-43 Plague with Heavy Machine Gun Last Messages --------------- 05343_ G-67 Veteran destroyed. 05344_ The unstable cave ceiling collapses. 05344_ Penetrated by Slug. 05345_ Acquired 13 matter. 05346_ Penetrated by Slug. 05346_ Biometal Medium Treads destroyed. 05348_ Penetrated by Slug. 05349_ Acquired 30 matter. 05350_ Acquired Myomer Leg. 05352_ Y-72 Warden emerges from the garrison. 05352_ Acquired Coil Gun. 05355_ Slug penetrates Wall. 05358_ ALERT: Suspicious intruders detected, dispatching Specialist reinforcements to area. 05358_ Adv. Cryofiber Web destroyed. 05364_ Penetrated by Slug. 05366_ Slug penetrates S-43 Plague. 05366_ W-44 Eye sends out distress signal. 05367_ Coil Gun destroyed. [Achievement: 10k Club] Map ----- +----------------------------------------------------+ | ?????????????????????????????????????????????????? | | ?????????????????????????????????????????????????? | | ?????????????????????????????????????????????????? | | ?????????????????????????????????????????????????? | | ?????????????????????????????????????????????????? | | ?????????????????????????????????????????????????? | | ?????????????????????????????????????????????????? | | ?????????????????????????????????????????????????? | | ??????????????????? ?????????????????????????????? | | ?????????????????? ?????????????????????????????? | | ??????????????????! ?????????????????????????????? | | ????????????????? ?????????????????????????????? | | ?????????????????? ????????????????????????????? | | ?????????????????? ????????????????????????????? | | ?????????????????? ????????????????????????????? | | ??????????????????# ????????????????????????????? | | ???????????######## #???????????????????????????? | | ???????????# ## #???????????????????????????? | | ???????????# ## H#???????????????????????????? | | ???????????# ! ## ##??????????????????????????? | | ???????????# # ########## #????????????? | | ############! + "T % "" ?????????????? | | # # "" T" ?????????????? | | # # ##s#######?????????????????? | | """ "" # ## "# s #??????????????????? | | !""" """# ## ## s@ #??????????????????? | | """ T"# ## ## s #??????????????????? | | """#+###### ## #??????????????????? | | "" # ### ## #??????????????????? | | """ + ##! #??????????????????? | | """ # ## #??????????????????? | | """ # #######! #??????????????????? | | # #?##??# #??????????????????? | | # ###############??????????????????? | | ############ # #??????????????????????? | | ???????????# #??????????????????????? | | ???????????# [ #??????????????????????? | | ???????????# % % " " #??????????????????????? | | ???????????# ! !!" " #??????????????????????? | | ?########### ""G"" #????#####?????????????? | | ?# """ % #????# ###### #??? | | ?# """ #????# +??? | | ?# """ # ! %# ####????# ###### #??? | | ?# ####?######## ##?????????????? | | ?# #????# # #??????????????? | | ?# # ####### # #??????????????? | | ?# # # #??????????????? | | ?# # # #??????????????? | | ?######## # # ####???????????? | | =# # #???????????? | +----------------------------------------------------+ Best States ------------- Heat Dissipation 56 Energy Generation 37 Energy Capacity 550 Matter Stores 309 Matter Capacity 550 Sight Range 16 Robot Scan Range 15 Terrain Scan Density 10 ECM Strength 2 Jamming Range 14 Cloak Strength 2 Additional Mass Support 6 Base Temperature (-) 200 EM Shielding 3 Resistance: EX 25 Point Defense Rating 80 Evasion (%) 65 Targeting Accuracy 8 Melee Accuracy 5 Recoil Reduction 4 Energy Filtering 30 Salvage Targeting 1 Offensive Hacking 20 Authchip Count 1 Item Schematics ----------------- Combat Drone Bay | -7/Data Miner | Free Lgt. Regenerative Plating | -7/Data Miner | Free Cld. Aerolev Unit | -7/Data Miner | Free Exp. Targeting Computer | -7/Data Miner | Free Imp. Heavy Laser | -7/Data Miner | Free Antigrav System | -7/Data Miner | Free Adv. Salvage Targeting Computer | -7/Data Miner | Free Hyp. Coil Gun | -7/Data Miner | Free Mic. Fission Core | -7/Data Miner | Free Quantum Capacitor | -7/Data Miner | Free Lgt. Quantum Reactor | -3/Research | Hacked Robot Schematics ------------------ G-47 Trooper | -7/Factory | Downloaded S-27 Virus | -7/Data Miner | Free G-50 Soldier | -7/Data Miner | Free R-10 Processor | -7/Data Miner | Free O-24 Administrator | -7/Data Miner | Free Fabricated ------------ G-47 Trooper | x3 | -7/Factory Alien Tech Used ----------------- None Achievements -------------- 10k Club Below Dangerous Findings Fist Fight Leap Before You Look Respectable Loadout The Oracle Challenges ------------ None Game ------ Seed SingularityShockNukerbomber Manual? 0 Play Time 02:18:28 Cumulative 46.3 hours Start 2024.06.14 @ 17:58:00 End 2024.06.14 @ 20:34:00 Sessions 1 Manual Loads 0 Difficulty Rogue Special Mode None Game No. 71 Rogue 71 Adventurer 0 Explorer 0 Win Type - Total 0 Types 0/0/0/0/0/0/0/0/0 Lore% 24 Gallery% 38 Achievement% 28 Wizard Run 0 Options --------- Layout 0 ASCII 0 Keyboard 0 Movement Mouse Keybinds 0 Fullscreen 1 Font 24/Smallcaps Map View 76x50 Zoom Use 0% Tactical HUD 1 Map Filters NONE Filters NONE Steam 1 RUN: 26e96982-b449-41d6-8185-127dcb80c4b2